bitfinex/quotes_BTCUSD_20230405
["timestamp","ask_amount","ask_price","bid_price","bid_amount"]
[1680656696361,0.047432,28591.0,28590.0,0.571278]
[1680656696575,0.0212,28591.0,28590.0,0.739098]
[1680656696786,0.0212,28591.0,28590.0,0.756586]
[1680656697008,0.0212,28591.0,28590.0,1.156586]
[1680656697228,0.0212,28591.0,28590.0,1.239098]
[1680656697450,0.0212,28591.0,28590.0,1.139098]
[1680656697886,0.0212,28591.0,28590.0,0.766458]
[1680656698099,0.0212,28591.0,28590.0,0.681786]
[1680656698314,0.0212,28591.0,28590.0,1.256596]
[1680656698785,0.0212,28591.0,28590.0,1.156656]
[1680656699002,0.0212,28591.0,28590.0,0.191718]
[1680656699217,0.0212,28591.0,28590.0,0.16782]
[1680656699443,0.0212,28591.0,28590.0,0.022313]
[1680656699670,0.0212,28591.0,28590.0,0.039801]
[1680656699893,0.0212,28591.0,28590.0,0.022313]
[1680656700358,0.0212,28591.0,28590.0,0.190133]
[1680656700572,0.0212,28591.0,28590.0,0.382491]
[1680656701262,0.0212,28591.0,28590.0,0.482491]
[1680656701715,0.0212,28591.0,28590.0,0.855251]
[1680656702579,0.0212,28591.0,28590.0,1.955371]
[1680656702998,0.0212,28591.0,28590.0,1.955311]
[1680656703212,0.0212,28591.0,28590.0,1.955371]
[1680656703428,0.0212,28591.0,28590.0,2.31008156]
[1680656704359,0.0212,28593.0,28592.0,1.1727]
[1680656704578,0.0212,28593.0,28592.0,1.67184656]
[1680656704794,0.0212,28593.0,28592.0,2.01984656]
[1680656705018,0.0212,28593.0,28592.0,2.18760656]
[1680656705528,0.0212,28593.0,28592.0,1.78760656]
[1680656707719,0.0212,28597.0,28596.0,2.31084656]
[1680656708161,0.0212,28597.0,28596.0,2.19336256]
[1680656708387,0.0212,28597.0,28596.0,1.838652]
[1680656708614,0.0212,28597.0,28596.0,0.738652]
[1680656708846,0.0212,28597.0,28596.0,0.563812]
[1680656709093,0.0212,28597.0,28596.0,0.581296]
[1680656709338,0.0212,28597.0,28596.0,0.563812]
[1680656709563,0.0212,28597.0,28596.0,0.616265]
[1680656709781,0.0212,28597.0,28596.0,0.791095]
[1680656710783,0.0212,28597.0,28596.0,0.891095]
[1680656711220,0.0212,28597.0,28596.0,1.24580556]
[1680656713521,0.0212,28599.0,28598.0,1.8727]
[1680656713785,0.0212,28599.0,28598.0,2.37367556]
[1680656714045,0.0003,28605.0,28598.0,2.37367556]
[1680656714046,0.0214,28609.0,28607.0,1.8727]
[1680656714315,0.0214,28609.0,28608.0,0.7727]
[1680656714316,0.0211,28609.0,28608.0,0.7727]
[1680656714522,0.0211,28609.0,28608.0,1.70846137]
[1680656714743,0.0211,28609.0,28608.0,1.87610137]
[1680656714966,0.0211,28609.0,28608.0,1.71696137]
[1680656715188,0.0211,28609.0,28608.0,1.74270456]
[1680656715189,0.02061428,28609.0,28608.0,1.74270456]
[1680656715418,0.02061428,28609.0,28608.0,2.10813739]
[1680656715657,0.02061428,28609.0,28608.0,2.09070456]
[1680656716370,0.0213,28615.0,28611.0,2.2727]
[1680656716602,6e-05,28624.0,28614.0,1.8727]
[1680656716830,0.0003,28626.0,28618.0,0.3727]
[1680656717066,0.0003,28626.0,28622.0,0.54738]
[1680656717301,0.3739178,28629.0,28623.0,0.16498881]
[1680656717526,0.35471056,28625.0,28624.0,0.14189681]
[1680656717756,0.61974037,28625.0,28624.0,0.00018]
[1680656718013,0.61974037,28625.0,28607.0,4.50443833]
[1680656718014,0.49994,28623.0,28622.0,0.00012]
[1680656718306,0.3727,28621.0,28612.0,0.00018]
[1680656718528,0.1143,28615.0,28608.0,0.00018]
[1680656718751,0.008737,28613.0,28607.0,0.00018]
[1680656718975,0.008737,28613.0,28603.0,0.01748]
[1680656718976,0.61100737,28612.0,28606.0,0.16788]
[1680656719446,0.61974437,28612.0,28606.0,0.00018]
[1680656719671,0.61974437,28612.0,28605.0,0.00018]
[1680656719895,0.61100737,28612.0,28606.0,0.017478]
[1680656720120,0.61106737,28612.0,28605.0,0.384612]
[1680656720342,0.61130737,28612.0,28606.0,0.1677]
[1680656720844,0.46941056,28612.0,28607.0,0.541914]
[1680656721073,0.46941056,28612.0,28607.0,0.68381081]
[1680656721295,0.46941056,28612.0,28607.0,0.54748]
[1680656721517,0.46941056,28612.0,28605.0,0.359968]
[1680656721743,0.46941056,28612.0,28606.0,0.123163]
[1680656721744,0.61130737,28612.0,28606.0,0.123163]
[1680656721972,0.1147,28612.0,28606.0,0.42707481]
[1680656722194,0.1147,28612.0,28607.0,0.024112]
[1680656722416,0.1147,28612.0,28607.0,0.55618581]
[1680656722633,0.1167,28612.0,28608.0,0.023799]
[1680656722853,0.1167,28612.0,28609.0,0.192236]
[1680656723306,0.1147,28612.0,28609.0,0.17476]
[1680656723563,0.0023,28612.0,28611.0,0.02345]
[1680656723789,0.0023,28612.0,28611.0,0.89275737]
[1680656723790,0.002,28612.0,28611.0,0.89275737]
[1680656724021,0.002,28612.0,28611.0,2.67787237]
[1680656724252,0.0003,28619.0,28611.0,2.53597556]
[1680656724482,0.0003,28619.0,28616.0,0.54742]
[1680656724713,0.0003,28619.0,28618.0,0.023189]
[1680656724714,0.35501056,28619.0,28618.0,0.023189]
[1680656725165,0.0003,28619.0,28617.0,0.16764]
[1680656725394,0.017,28619.0,28618.0,0.023862]
[1680656725630,0.35471056,28619.0,28618.0,0.023862]
[1680656725927,0.37201056,28619.0,28618.0,0.002]
[1680656726143,0.39706066,28619.0,28618.0,0.002]
[1680656726806,0.0423501,28619.0,28618.0,0.002]
[1680656727025,0.0250501,28619.0,28616.0,0.16764]
[1680656727243,0.39676066,28619.0,28618.0,0.002]
[1680656727473,0.38006066,28619.0,28617.0,0.16764]
[1680656727704,0.38006066,28619.0,28618.0,0.002]
[1680656727705,0.0510851,28619.0,28618.0,0.002]
[1680656727924,0.0510851,28619.0,28608.0,1.1]
[1680656727925,0.8649111,28619.0,28611.0,0.16788]
[1680656728178,0.1153,28614.0,28611.0,0.00018]
[1680656728409,0.033927,28612.0,28608.0,0.00018]
[1680656728636,0.033927,28612.0,28603.0,1.5]
[1680656728637,0.1153,28610.0,28607.0,0.00018]
[1680656728869,0.1153,28610.0,28606.0,0.00018]
[1680656729539,0.35471056,28609.0,28606.0,0.00018]
[1680656729809,0.35471056,28609.0,28606.0,0.16776]
[1680656730027,0.1156,28610.0,28606.0,0.390238]
[1680656730246,0.1173,28610.0,28606.0,0.37276]
[1680656730459,0.1153,28610.0,28606.0,0.54046]
[1680656730691,0.002,28609.0,28606.0,0.557938]
[1680656731132,0.002,28609.0,28608.0,0.023284]
[1680656731353,0.1153,28610.0,28608.0,0.023284]
[1680656731577,0.1153,28610.0,28606.0,0.54058]
[1680656731799,0.0003,28612.0,28609.0,0.54746]
[1680656732030,0.3003,28613.0,28609.0,0.564936]
[1680656732255,0.1152,28611.0,28609.0,0.70683281]
[1680656732484,0.1152,28611.0,28609.0,0.564936]
[1680656732937,0.3,28613.0,28609.0,0.564936]
[1680656732938,0.0003,28613.0,28610.0,0.022553]
[1680656733162,0.001,28613.0,28611.0,0.53207181]
[1680656733385,0.1151,28619.0,28612.0,0.022036]
[1680656733641,0.1151,28619.0,28615.0,0.54742]
[1680656733861,0.0003,28619.0,28616.0,0.53650281]
[1680656734083,0.0003,28619.0,28618.0,0.022238]
[1680656734306,0.1152,28621.0,28618.0,0.16413481]
[1680656734529,0.1152,28621.0,28618.0,0.14189681]
[1680656734749,0.002,28619.0,28618.0,0.14189681]
[1680656734974,0.002,28619.0,28618.0,0.41415]
[1680656735189,0.002,28619.0,28618.0,0.58179]
[1680656735408,0.002,28619.0,28618.0,0.564319]
[1680656735626,0.0003,28624.0,28618.0,0.564319]
[1680656735864,0.0003,28624.0,28620.0,0.17469]
[1680656736090,0.0003,28624.0,28621.0,0.390169]
[1680656736312,0.0003,28624.0,28623.0,0.023142]
[1680656736533,0.0211,28627.0,28623.0,0.59014281]
[1680656736759,0.003,28624.0,28623.0,0.592684]
[1680656736984,0.0211,28627.0,28623.0,0.622823]
[1680656737214,0.0211,28627.0,28625.0,0.3727]
[1680656737453,0.0211,28627.0,28626.0,0.80396356]
[1680656737676,0.0211,28627.0,28626.0,1.07154356]
[1680656738556,0.0211,28627.0,28626.0,1.47154356]
[1680656739219,0.0241,28627.0,28626.0,1.87354356]
[1680656739446,0.0211,28627.0,28626.0,1.87154356]
[1680656739677,0.0241,28627.0,28626.0,1.87354356]
[1680656739900,0.0241,28627.0,28626.0,2.18204356]
[1680656740135,0.0241,28627.0,28626.0,2.54747639]
[1680656740399,0.0003,28637.0,28635.0,0.3727]
[1680656740628,0.0003,28637.0,28634.0,1.1]
[1680656740629,0.0003,28640.0,28637.0,0.3727]
[1680656740846,0.01,28643.0,28639.0,0.021855]
[1680656740847,0.0214,28641.0,28639.0,0.021855]
[1680656741067,0.0214,28641.0,28640.0,0.14189681]
[1680656741585,0.0214,28641.0,28640.0,0.397079]
[1680656741812,0.0214,28641.0,28640.0,0.024379]
[1680656742256,0.0424,28641.0,28640.0,0.024379]
[1680656742510,0.0214,28641.0,28640.0,0.024379]
[1680656742731,0.0234,28641.0,28640.0,0.029379]
[1680656742955,0.0231,28641.0,28640.0,0.397079]
[1680656743183,0.0214,28641.0,28640.0,0.564599]
[1680656743407,0.0241,28641.0,28640.0,0.569599]
[1680656743632,0.0214,28641.0,28640.0,0.582057]
[1680656743857,0.0211,28641.0,28640.0,0.582057]
[1680656744531,0.0241,28641.0,28640.0,0.587057]
[1680656744760,0.0211,28641.0,28640.0,0.682057]
[1680656745017,0.0241,28641.0,28640.0,0.569599]
[1680656745241,0.0241,28641.0,28640.0,0.196899]
[1680656745458,0.0241,28641.0,28640.0,0.005]
[1680656745904,0.0244,28641.0,28640.0,0.028037]
[1680656746092,0.0244,28641.0,28640.0,0.400737]
[1680656746357,0.0214,28641.0,28640.0,0.570307]
[1680656746798,0.0214,28641.0,28640.0,0.587765]
[1680656747017,0.0214,28641.0,28640.0,0.570307]
[1680656747246,0.0244,28641.0,28640.0,0.028037]
[1680656747466,0.0244,28641.0,28640.0,0.023037]
[1680656747467,0.0214,28641.0,28640.0,0.023037]
[1680656747685,0.0244,28641.0,28640.0,0.028037]
[1680656747903,0.0214,28641.0,28640.0,0.023037]
[1680656748126,0.0234,28641.0,28640.0,0.028037]
[1680656749451,0.54350537,28641.0,28640.0,0.005]
[1680656749689,0.74689356,28641.0,28640.0,0.005]
[1680656749928,1.11209356,28641.0,28640.0,0.005]
[1680656750156,1.09732356,28641.0,28640.0,0.005]
[1680656750375,1.09532356,28641.0,28630.0,0.54028]
[1680656750603,0.1148,28633.0,28630.0,0.68217681]
[1680656750826,0.1148,28633.0,28632.0,0.022049]
[1680656750827,0.1151,28633.0,28632.0,0.022049]
[1680656751516,0.1154,28633.0,28629.0,0.16758]
[1680656751714,0.1139,28630.0,28629.0,0.16758]
[1680656751970,0.002,28633.0,28632.0,0.0047]
[1680656752201,0.1161,28633.0,28632.0,0.0047]
[1680656752883,0.1141,28633.0,28630.0,0.1]
[1680656753098,0.1141,28633.0,28632.0,0.040875]
[1680656753315,0.1161,28633.0,28632.0,0.045875]
[1680656753532,0.002,28633.0,28632.0,0.518575]
[1680656753759,0.1144,28636.0,28632.0,0.681155]
[1680656753972,0.1144,28636.0,28632.0,0.79963881]
[1680656753973,0.003,28633.0,28632.0,0.79963881]
[1680656754190,0.1144,28636.0,28632.0,0.681617]
[1680656754414,0.0003,28638.0,28634.0,0.3727]
[1680656754632,0.1139,28639.0,28637.0,0.17458]
[1680656754633,0.1142,28639.0,28637.0,0.17458]
[1680656754851,0.1142,28639.0,28634.0,0.90422937]
[1680656754852,0.1142,28639.0,28636.0,0.3727]
[1680656755773,0.001,28638.0,28637.0,1.82741056]
[1680656755988,0.0211,28641.0,28639.0,0.3727]
[1680656756206,0.0211,28641.0,28640.0,0.412799]
[1680656756418,0.0211,28641.0,28640.0,0.72221581]
[1680656756706,0.0211,28641.0,28640.0,0.754879]
[1680656757346,0.0241,28641.0,28640.0,0.763879]
[1680656758631,0.0241,28641.0,28640.0,1.11858956]
[1680656759084,0.0211,28641.0,28640.0,1.10958956]
[1680656759310,0.0241,28641.0,28640.0,1.21858956]
[1680656759531,0.0241,28641.0,28640.0,1.20958956]
[1680656759532,0.0211,28641.0,28640.0,1.20958956]
[1680656759721,0.0241,28641.0,28640.0,1.21858956]
[1680656759973,0.0241,28641.0,28640.0,1.21864956]
[1680656760441,0.0241,28641.0,28640.0,1.21876956]
[1680656761107,0.0241,28641.0,28640.0,1.21858956]
[1680656761329,0.0191,28641.0,28640.0,1.21858956]
[1680656761563,0.0191,28641.0,28640.0,1.11858956]
[1680656761818,0.0191,28641.0,28640.0,1.21858956]
[1680656762041,0.0191,28641.0,28640.0,1.86658956]
[1680656762732,0.0191,28641.0,28640.0,1.76658956]
[1680656762951,0.0191,28641.0,28640.0,1.41858956]
[1680656763180,0.0191,28641.0,28640.0,0.571861]
[1680656763408,0.0191,28641.0,28640.0,0.404341]
[1680656763641,0.133,28641.0,28640.0,0.009]
[1680656763860,0.133,28641.0,28640.0,0.061374]
[1680656764099,0.133,28641.0,28640.0,0.026458]
[1680656764369,0.1333,28641.0,28640.0,0.009]
[1680656764799,0.1333,28641.0,28640.0,0.18357]
[1680656765020,0.1303,28641.0,28637.0,0.184979]
[1680656765232,0.1323,28641.0,28638.0,0.023421]
[1680656765462,0.49994,28660.0,28645.0,0.4]
[1680656765677,0.3732,28663.0,28645.0,0.4]
[1680656765678,0.02131,28659.0,28658.0,0.17446]
[1680656765905,0.02131,28659.0,28658.0,0.71264581]
[1680656765906,0.0214,28659.0,28658.0,0.71264581]
[1680656766125,0.02104,28659.0,28658.0,0.73009281]
[1680656766342,0.72104,28659.0,28658.0,0.73009281]
[1680656766557,0.02104,28659.0,28658.0,1.08498337]
[1680656767001,0.02104,28659.0,28658.0,0.94308656]
[1680656767228,0.02304,28659.0,28658.0,0.95308656]
[1680656767450,0.0003,28665.0,28658.0,2.56140656]
[1680656767672,0.00015,28671.0,28663.0,1.1]
[1680656767898,0.00015,28672.0,28663.0,1.1]
[1680656767899,0.0003,28672.0,28665.0,0.017442]
[1680656768174,0.3968,28673.0,28669.0,0.1744]
[1680656768423,0.11524,28676.0,28670.0,0.16502681]
[1680656768643,0.35471056,28675.0,28670.0,0.12079681]
[1680656768870,0.33842856,28675.0,28670.0,0.12097681]
[1680656769108,0.035406,28674.0,28670.0,0.12079681]
[1680656769324,0.035406,28674.0,28669.0,0.00018]
[1680656769325,0.001,28671.0,28668.0,0.00018]
[1680656769549,0.35471056,28671.0,28666.0,0.00018]
[1680656769773,0.35471056,28671.0,28670.0,0.001]
[1680656769774,0.14189681,28671.0,28670.0,0.001]
[1680656769992,0.115,28672.0,28666.0,0.37288]
[1680656770217,0.35471056,28671.0,28666.0,0.00018]
[1680656770448,0.35471056,28670.0,28666.0,0.00018]
[1680656771127,0.36342956,28670.0,28666.0,0.00018]
[1680656771361,0.001,28671.0,28670.0,0.3727]
[1680656771576,0.008717,28679.0,28670.0,1.61794381]
[1680656771802,0.35471056,28678.0,28671.0,0.51775181]
[1680656772088,0.35471056,28678.0,28674.0,0.4718]
[1680656772314,0.35471056,28678.0,28675.0,0.14311281]
[1680656772534,0.35471056,28678.0,28675.0,0.12097681]
[1680656772759,0.002,28678.0,28675.0,0.12097681]
[1680656772943,0.002,28678.0,28674.0,0.00018]
[1680656773188,0.002,28678.0,28674.0,0.17437]
[1680656773415,0.002,28678.0,28675.0,0.02251]
[1680656773635,0.008717,28679.0,28672.0,0.023421]
[1680656773850,0.15061381,28679.0,28672.0,0.12097681]
[1680656774068,0.002,28678.0,28675.0,0.018]
[1680656774312,0.002,28678.0,28673.0,0.3727]
[1680656774313,0.008717,28679.0,28674.0,0.00018]
[1680656774564,0.3,28680.0,28675.0,0.018]
[1680656774565,0.002,28678.0,28675.0,0.018]
[1680656774791,0.387433,28681.0,28676.0,0.3727]
[1680656774792,0.37,28681.0,28676.0,0.3727]
[1680656775011,0.002,28679.0,28677.0,0.02313]
[1680656775224,0.35471056,28680.0,28678.0,0.023612]
[1680656775225,0.35422579,28680.0,28678.0,0.023612]
[1680656775447,0.002,28679.0,28676.0,0.023476]
[1680656775668,0.35471056,28678.0,28674.0,0.01818]
[1680656775859,0.14189681,28678.0,28675.0,0.020925]
[1680656776117,0.14189681,28678.0,28674.0,0.018]
[1680656776118,0.0838,28676.0,28674.0,0.018]
[1680656776339,0.69360237,28675.0,28671.0,0.00018]
[1680656776560,0.0838,28672.0,28667.0,0.00018]
[1680656776782,0.56240237,28671.0,28664.0,0.00018]
[1680656777005,0.52276537,28671.0,28664.0,0.00018]
[1680656777225,0.1,28670.0,28663.0,0.00018]
[1680656777447,0.026161,28668.0,28662.0,0.37276]
[1680656777671,0.026161,28668.0,28661.0,0.16758]
[1680656777672,0.49660737,28667.0,28661.0,0.16758]
[1680656777885,0.130514,28666.0,28659.0,0.16752]
[1680656778112,0.49660737,28665.0,28663.0,0.017]
[1680656778332,0.044994,28664.0,28663.0,0.017]
[1680656778551,0.008721,28664.0,28658.0,0.37288]
[1680656778770,0.49660737,28663.0,28661.0,0.017]
[1680656778989,0.03577,28662.0,28657.0,0.16758]
[1680656779209,0.03577,28662.0,28657.0,0.00018]
[1680656779210,0.14189681,28661.0,28657.0,0.00018]
[1680656779450,0.14189681,28661.0,28657.0,0.17465]
[1680656779718,0.00224,28663.0,28658.0,0.020362]
[1680656779939,0.35671056,28663.0,28658.0,0.037809]
[1680656780166,0.002,28663.0,28660.0,1.4727]
[1680656780387,0.002,28663.0,28662.0,0.195973]
[1680656780603,0.0841,28666.0,28662.0,1.295973]
[1680656780818,0.00024,28668.0,28663.0,0.021232]
[1680656781048,0.3956,28669.0,28664.0,0.3727]
[1680656781266,0.3956,28669.0,28665.0,0.14127181]
[1680656781267,0.39584,28669.0,28665.0,0.14127181]
[1680656781482,0.00024,28669.0,28666.0,0.022306]
[1680656781699,0.008719,28671.0,28666.0,0.022306]
[1680656781919,0.002,28668.0,28666.0,0.12079681]
[1680656782145,0.35471056,28670.0,28665.0,0.5491]
[1680656782146,0.36367056,28670.0,28665.0,0.5491]
[1680656782372,0.002,28669.0,28667.0,0.17441]
[1680656782590,0.002,28669.0,28668.0,0.020976]
[1680656783034,0.002,28669.0,28668.0,0.554476]
[1680656783493,0.008719,28672.0,28668.0,0.554476]
[1680656783713,3e-05,28673.0,28668.0,0.5335]
[1680656783935,0.00024,28673.0,28668.0,0.65429681]
[1680656784153,0.00024,28674.0,28671.0,0.54709]
[1680656784378,0.00024,28674.0,28673.0,0.021486]
[1680656784600,0.0841,28675.0,28673.0,0.021486]
[1680656784822,0.0841,28675.0,28672.0,0.876564]
[1680656785043,0.0841,28675.0,28674.0,0.144183]
[1680656785265,0.00024,28675.0,28674.0,0.144183]
[1680656785488,0.0841,28678.0,28674.0,0.928134]
[1680656785724,0.00024,28679.0,28675.0,0.020301]
[1680656785953,0.35471056,28679.0,28675.0,0.14109781]
[1680656786172,0.35495056,28679.0,28676.0,0.021896]
[1680656786390,0.35495056,28679.0,28676.0,0.052308]
[1680656786606,0.35495056,28679.0,28675.0,0.13823281]
[1680656786824,0.35495056,28679.0,28676.0,0.02192]
[1680656786825,0.00024,28679.0,28676.0,0.02192]
[1680656787053,0.10544,28681.0,28675.0,0.021422]
[1680656787365,0.36342656,28680.0,28675.0,0.14221881]
[1680656787457,0.002,28679.0,28676.0,0.017]
[1680656787677,0.00224,28679.0,28676.0,0.017]
[1680656787897,0.00224,28679.0,28678.0,0.020531]
[1680656787898,0.00024,28679.0,28678.0,0.020531]
[1680656788126,0.1,28678.0,28677.0,0.4475]
[1680656788356,0.49982756,28678.0,28677.0,0.4475]
[1680656788580,0.49673356,28678.0,28677.0,0.44768]
[1680656788796,0.49689956,28678.0,28677.0,0.00018]
[1680656789012,0.49689956,28678.0,28672.0,0.00018]
[1680656789233,0.49660737,28677.0,28671.0,0.16752]
[1680656789450,0.026154,28676.0,28671.0,0.00018]
[1680656789683,0.52276137,28676.0,28670.0,0.00018]
[1680656789902,0.52276137,28676.0,28670.0,0.54022]
[1680656790110,0.52276137,28676.0,28671.0,0.017]
[1680656790318,0.38086456,28676.0,28671.0,0.16752]
[1680656790529,0.38276456,28676.0,28671.0,0.16752]
[1680656790746,0.36532856,28676.0,28671.0,0.16752]
[1680656790982,0.36342856,28676.0,28672.0,0.021587]
[1680656791220,0.010718,28676.0,28672.0,0.021587]
[1680656791432,0.008718,28676.0,28672.0,0.021587]
[1680656791654,0.008718,28676.0,28672.0,0.561807]
[1680656791655,0.002,28676.0,28672.0,0.561807]
[1680656791878,0.002,28676.0,28673.0,0.021972]
[1680656792098,0.002,28676.0,28673.0,0.022152]
[1680656792575,0.35471056,28674.0,28661.0,6.18]
[1680656792802,0.148235,28671.0,28666.0,0.33929232]
[1680656793027,0.0841,28667.0,28663.0,0.00018]
[1680656793256,0.0838,28663.0,28655.0,0.00018]
[1680656793485,0.008722,28661.0,28655.0,0.00018]
[1680656793715,0.008722,28661.0,28656.0,0.3727]
[1680656793716,0.043612,28661.0,28656.0,0.3727]
[1680656793978,0.045211,28660.0,28656.0,0.3727]
[1680656794197,0.026169,28659.0,28654.0,6e-05]
[1680656794425,0.14189681,28658.0,28655.0,0.17448]
[1680656794651,0.14189681,28659.0,28657.0,0.014937]
[1680656794894,0.008722,28661.0,28658.0,0.014716]
[1680656795130,0.008722,28661.0,28656.0,0.3727]
[1680656795362,0.008722,28661.0,28655.0,0.16758]
[1680656795586,0.15061881,28661.0,28654.0,0.16758]
[1680656795807,0.14189681,28660.0,28655.0,0.388071]
[1680656796030,0.008723,28659.0,28656.0,0.015136]
[1680656796487,0.008723,28660.0,28656.0,0.015136]
[1680656796712,0.017445,28661.0,28657.0,0.3727]
[1680656796938,0.011723,28660.0,28657.0,0.3727]
[1680656797151,0.011723,28660.0,28659.0,0.014944]
[1680656797152,0.008723,28660.0,28659.0,0.014944]
[1680656797371,0.011723,28660.0,28659.0,0.014944]
[1680656797590,0.011723,28660.0,28657.0,0.3727]
[1680656798022,0.011723,28660.0,28659.0,0.014655]
[1680656798252,0.008723,28660.0,28657.0,0.3727]
[1680656798469,0.35471056,28659.0,28656.0,0.00018]
[1680656798698,0.008723,28658.0,28654.0,0.00018]
[1680656798937,0.008723,28658.0,28654.0,0.388934]
[1680656798938,0.15061981,28658.0,28654.0,0.388934]
[1680656799165,0.008723,28658.0,28655.0,0.014253]
[1680656799819,0.008723,28659.0,28655.0,0.014253]
[1680656800041,0.003,28658.0,28655.0,0.014253]
[1680656800277,0.017444,28662.0,28655.0,0.014253]
[1680656800492,0.008723,28660.0,28657.0,0.3727]
[1680656801272,0.003,28658.0,28657.0,0.19432555]
[1680656801486,0.008723,28659.0,28657.0,0.20963055]
[1680656801673,0.017444,28662.0,28657.0,0.20963055]
[1680656801674,0.002,28660.0,28658.0,0.015238]
[1680656801934,0.008723,28659.0,28654.0,0.17467]
[1680656802157,0.008723,28659.0,28653.0,1.29067]
[1680656802158,0.14189681,28658.0,28656.0,0.3727]
[1680656802383,0.061065,28657.0,28655.0,0.00018]
[1680656802600,0.061065,28657.0,28653.0,0.02321]
[1680656802601,0.02617,28657.0,28653.0,0.02321]
[1680656802866,0.16806681,28657.0,28653.0,0.02321]
[1680656803085,0.02617,28657.0,28653.0,0.02321]
[1680656803726,0.0838,28656.0,28653.0,0.02321]
[1680656803949,0.092524,28656.0,28653.0,0.02321]
[1680656804618,0.26327452,28669.0,28665.0,0.4]
[1680656804848,0.24704343,28666.0,28665.0,0.4]
[1680656805097,0.0211,28681.0,28670.0,0.37046]
[1680656805326,0.0211,28681.0,28673.0,0.37046]
[1680656805553,0.0211,28681.0,28676.0,0.37046]
[1680656805779,0.0211,28681.0,28677.0,0.014709]
[1680656806236,0.0211,28681.0,28678.0,0.12079681]
[1680656806466,0.0211,28681.0,28680.0,0.015961]
[1680656806966,0.38652656,28681.0,28677.0,0.00018]
[1680656807209,0.38652656,28681.0,28678.0,0.017434]
[1680656807210,0.37581056,28681.0,28678.0,0.017434]
[1680656807436,0.37581056,28681.0,28680.0,0.002]
[1680656807437,0.39581056,28681.0,28680.0,0.002]
[1680656807672,0.37581056,28681.0,28677.0,0.00012]
[1680656807916,0.39381056,28681.0,28677.0,0.002]
[1680656808137,0.37602056,28681.0,28675.0,0.3727]
[1680656808362,0.49660737,28680.0,28673.0,0.557657]
[1680656808588,0.49660737,28680.0,28673.0,0.54004]
[1680656808589,0.49681737,28680.0,28673.0,0.54004]
[1680656808820,0.50553337,28680.0,28673.0,0.54004]
[1680656809293,0.50553337,28680.0,28673.0,0.49349681]
[1680656809971,0.50553337,28680.0,28673.0,0.66083681]
[1680656810208,0.50553337,28680.0,28673.0,0.49349681]
[1680656810435,0.50653337,28680.0,28673.0,0.50149681]
[1680656810659,0.0841,28677.0,28673.0,0.008]
[1680656810891,0.49681737,28677.0,28673.0,0.008]
[1680656811123,0.14210681,28677.0,28674.0,0.3727]
[1680656811345,0.00021,28677.0,28676.0,0.014639]
[1680656811576,0.008717,28679.0,28673.0,0.008]
[1680656811577,0.00021,28679.0,28673.0,0.008]
[1680656811794,0.35471056,28677.0,28673.0,0.12079681]
[1680656812020,0.35592056,28677.0,28673.0,0.009]
[1680656812264,0.49660737,28676.0,28673.0,0.009]
[1680656812496,0.15954281,28676.0,28675.0,0.0437]
[1680656812737,0.068217,28676.0,28673.0,0.009]
[1680656812966,0.035872,28677.0,28673.0,0.009]
[1680656812967,0.001,28677.0,28673.0,0.009]
[1680656813161,0.008717,28679.0,28670.0,0.390139]
[1680656813442,0.008717,28678.0,28673.0,0.009]
[1680656813656,0.008717,28678.0,28671.0,0.54004]
[1680656813877,0.008717,28678.0,28672.0,0.16734]
[1680656814107,0.35471056,28677.0,28672.0,0.16734]
[1680656814344,0.013718,28676.0,28672.0,0.16734]
[1680656814561,0.00860396,28676.0,28672.0,0.16652]
[1680656814778,0.35471056,28675.0,28671.0,0.01518]
[1680656815000,0.36342856,28675.0,28671.0,0.00018]
[1680656815223,0.50532537,28675.0,28671.0,0.00018]
[1680656815445,0.36342856,28675.0,28671.0,0.00018]
[1680656816353,0.36442856,28675.0,28671.0,0.01518]
[1680656816824,0.35471056,28675.0,28671.0,0.00018]
[1680656817045,0.35571056,28675.0,28671.0,0.01518]
[1680656817241,0.36342856,28675.0,28671.0,0.00018]
[1680656817497,0.35571056,28675.0,28671.0,0.01518]
[1680656817713,0.00021,28677.0,28671.0,0.00018]
[1680656817951,0.001,28675.0,28671.0,0.13579681]
[1680656818172,0.001,28675.0,28674.0,1.1]
[1680656818436,0.001,28675.0,28674.0,1.114779]
[1680656818680,0.001,28675.0,28674.0,0.014779]
[1680656818915,0.001,28675.0,28674.0,0.132036]
[1680656819157,0.001,28675.0,28674.0,0.144836]
[1680656819380,0.0295,28680.0,28674.0,0.144896]
[1680656819613,0.0211,28681.0,28676.0,0.3727]
[1680656819830,0.0211,28681.0,28677.0,0.61093181]
[1680656820032,0.0211,28681.0,28678.0,0.015964]
[1680656820332,0.0211,28681.0,28679.0,0.3851]
[1680656820568,0.0211,28681.0,28680.0,0.031713]
[1680656820766,0.0431,28681.0,28680.0,0.031713]
[1680656821019,0.0211,28681.0,28680.0,0.474148]
[1680656821239,0.0261,28681.0,28680.0,0.486548]
[1680656821463,0.0261,28681.0,28680.0,0.416813]
[1680656821905,0.0261,28681.0,28680.0,0.39938]
[1680656822603,0.0211,28681.0,28680.0,0.02668]
[1680656822830,0.0221,28681.0,28680.0,0.04168]
[1680656823507,0.0221,28681.0,28680.0,0.0124]
[1680656823508,0.0211,28681.0,28680.0,0.0124]
[1680656823726,0.0211,28681.0,28680.0,0.0214]
[1680656823727,0.0221,28681.0,28680.0,0.0214]
[1680656823944,0.0221,28681.0,28680.0,0.036277]
[1680656824626,0.02199717,28681.0,28680.0,0.036397]
[1680656824848,0.02199717,28681.0,28680.0,0.036277]
[1680656825072,0.02199717,28681.0,28680.0,0.0214]